bitfinex-derivatives/quotes_SOLF0:USTF0_20220110
["timestamp","ask_amount","ask_price","bid_price","bid_amount"]
[1641783089390,1.41344737,141.3,141.23,4.01421567]
[1641783089790,1.41344737,141.3,141.23,6.47052377]
[1641783090190,1.41344737,141.31,141.24,4.01421567]
[1641783090693,1.41344737,141.31,141.24,6.47052377]
[1641783091300,1.41344737,141.31,141.25,2.4563081]
[1641783091493,1.41344737,141.31,141.25,6.47052377]
[1641783091893,1.41344737,141.31,141.25,4.01421567]
[1641783092093,1.41344737,141.31,141.26,4.01421567]
[1641783092494,1.41344737,141.31,141.24,4.01421567]
[1641783093195,1.41344737,141.31,141.25,2.45629469]
[1641783093694,1.41344737,141.31,141.26,4.01421567]
[1641783094295,1.41344737,141.32,141.26,4.01421567]
[1641783094496,1.41344737,141.32,141.27,27.66479]
[1641783094695,1.41344737,141.32,141.27,30.12108469]
[1641783095197,1.41344737,141.33,141.28,8.01421567]
[1641783095399,14.95770931,141.36,141.29,1.768]
[1641783095796,14.95770931,141.36,141.28,5.78221567]
[1641783095996,1.41323902,141.35,141.3,4.01421567]
[1641783096197,1.41323902,141.35,141.3,6.47042945]
[1641783096398,1.41323902,141.35,141.3,2.45621378]
[1641783096599,1.41323902,141.35,141.3,30.12100378]
[1641783096801,1.41323902,141.36,141.31,4.01421567]
[1641783097399,1.41323902,141.36,141.31,13.15021567]
[1641783097599,2.54206402,141.35,141.31,13.15021567]
[1641783097998,1.41323902,141.34,141.32,4.01421567]
[1641783098800,1.41323902,141.35,141.32,4.01421567]
[1641783099603,1.41323902,141.37,141.32,4.01421567]
[1641783100102,1.41323902,141.37,141.31,4.01421567]
[1641783100405,2.54037505,141.36,141.31,4.01421567]
[1641783100702,8.77637505,141.36,141.31,4.01421567]
[1641783100901,1.41323902,141.35,141.31,4.01421567]
[1641783101401,1.41323902,141.35,141.3,4.01421567]
[1641783102603,27.66479,141.35,141.3,4.01421567]
[1641783103005,3.95319772,141.34,141.3,4.01421567]
[1641783103405,1.41323902,141.33,141.3,4.01421567]
[1641783104206,1.41323902,141.34,141.3,4.01421567]
[1641783116325,1.41323902,141.36,141.3,4.01421567]
[1641783116526,16.37094833,141.36,141.3,4.01421567]
[1641783117127,27.66479,141.35,141.3,4.01421567]
[1641783117326,31.62049354,141.35,141.3,4.01421567]
[1641783117725,1.41323902,141.34,141.3,4.01421567]
[1641783117927,3.95570354,141.34,141.3,4.01421567]
[1641783118429,1.41323902,141.33,141.3,4.01421567]
[1641783119330,1.41323902,141.34,141.3,4.01421567]
[1641783119731,7.07339033,141.34,141.3,4.01421567]
[1641783120130,1.41323902,141.33,141.3,4.01421567]
[1641783120331,3.95857014,141.33,141.3,4.01421567]
[1641783120732,3.95857014,141.33,141.27,4.01421567]
[1641783121234,1.41323902,141.32,141.26,4.01421567]
[1641783121432,3.95857014,141.32,141.26,4.01421567]
[1641783122033,1.41323902,141.31,141.26,4.01421567]
[1641783122434,3.95857014,141.31,141.27,2.46123269]
[1641783122834,1.41323902,141.3,141.28,4.01421567]
[1641783123238,3.95857014,141.3,141.28,4.01421567]
[1641783123836,1.41323902,141.29,141.28,4.01421567]
[1641783124837,1.41323902,141.31,141.26,4.01421567]
[1641783125136,1.41323902,141.31,141.27,1.768]
[1641783125537,1.41323902,141.32,141.28,4.01421567]
[1641783126539,1.41323902,141.32,141.27,4.01421567]
[1641783126740,1.41323902,141.32,141.28,1.768]
[1641783126941,1.41323902,141.34,141.28,5.768]
[1641783127241,1.41323902,141.34,141.29,6.47429449]
[1641783127641,1.41323902,141.34,141.3,4.01421567]
[1641783128042,1.41323902,141.34,141.3,6.47429449]
[1641783128647,1.41323902,141.34,141.31,4.01421567]
[1641783130648,2.54619729,141.33,141.31,4.01421567]
[1641783131347,1.41323902,141.32,141.31,4.01421567]
[1641783133048,7.0742006,141.32,141.31,1.567e-05]
[1641783133249,13.62087367,141.32,141.24,47.03760931]
[1641783133449,27.66479,141.3,141.24,14.95770931]
[1641783133648,4.0,141.28,141.24,14.95770931]
[1641783133851,4.0,141.26,141.24,14.95770931]
[1641783134048,9.66292015,141.27,141.24,14.95770931]
[1641783134450,4.0,141.26,141.25,4.01562294]
[1641783134851,15.32619875,141.27,141.22,2.46175516]
[1641783135052,7.08114998,141.26,141.22,2.46175516]
[1641783135251,7.08114998,141.26,141.23,4.01591257]
[1641783135451,34.74593998,141.26,141.23,4.01591257]
[1641783135851,27.66479,141.26,141.23,4.01591257]
[1641783136550,27.66479,141.26,141.2,4.01591257]
[1641783137151,14.95770931,141.29,141.2,4.01591257]
[1641783137851,38.45911169,141.3,141.21,2.45596477]
[1641783138451,38.45911169,141.3,141.22,4.01591257]
[1641783138654,7.08014727,141.28,141.22,4.01591257]
[1641783139353,27.66479,141.27,141.22,4.01591257]
[1641783140352,27.66479,141.27,141.18,77.79049931]
[1641783140353,27.66479,141.27,141.19,4.01591257]
[1641783141156,31.66479,141.27,141.19,4.01591257]
[1641783141356,55.32958,141.27,141.2,2.4546767]
[1641783141957,59.32958,141.27,141.21,4.01591257]
[1641783142157,5.6637296,141.25,141.21,4.01591257]
[1641783142359,12.74538104,141.25,141.21,4.01591257]
[1641783142959,12.74538104,141.25,141.19,4.01591257]
[1641783143359,55.32958,141.27,141.19,4.01591257]
[1641783143561,64.99278145,141.27,141.19,4.01591257]
[1641783143861,7.08165144,141.25,141.19,4.01591257]
[1641783144061,11.08165144,141.25,141.19,4.01591257]
[1641783144461,11.08165144,141.25,141.15,5.78591257]
[1641783144662,11.08165144,141.25,141.15,40.95151257]
[1641783144862,11.08165144,141.25,141.16,4.01591257]
[1641783145062,11.08165144,141.25,141.16,6.46841633]
[1641783145462,27.66479,141.24,141.17,4.01591257]
[1641783146864,2.6192526,141.23,141.16,5.78591257]
[1641783147364,2.6192526,141.23,141.17,4.01591257]
[1641783147365,27.66479,141.23,141.17,4.01591257]
[1641783147665,27.66479,141.23,141.17,6.46643634]
[1641783147866,2.6192526,141.22,141.17,6.46643634]
[1641783148265,2.6192526,141.22,141.18,4.01591257]
[1641783148665,2.6192526,141.22,141.17,4.01591257]
[1641783149265,2.6192526,141.25,141.17,4.01591257]
[1641783149467,27.66479,141.24,141.17,4.01591257]
[1641783149667,27.66479,141.24,141.18,4.0]
[1641783149966,27.66479,141.24,141.18,5.77]
[1641783150167,27.66479,141.27,141.19,4.01591257]
[1641783150378,27.66479,141.27,141.19,37.00271257]
[1641783150567,2.61831805,141.26,141.19,39.4529871]
[1641783151168,2.61831805,141.26,141.2,4.01591257]
[1641783157073,6.61831805,141.26,141.2,4.01591257]
[1641783157473,27.66479,141.24,141.2,4.01591257]
[1641783158174,2.61831805,141.23,141.2,4.01591257]
[1641783160377,8.28304702,141.23,141.2,4.01591257]
[1641783160779,8.28304702,141.23,141.17,4.01591257]
[1641783160980,12.28304702,141.23,141.17,4.01591257]
[1641783161180,2.61831805,141.22,141.17,4.01591257]
[1641783161482,27.66479,141.21,141.17,4.01591257]
[1641783161680,27.66479,141.21,141.16,4.01591257]
[1641783162181,2.61831805,141.2,141.16,4.01591257]
[1641783162783,2.61831805,141.2,141.17,2.45990641]
[1641783163184,2.61831805,141.2,141.18,4.01591257]
[1641783165083,27.66479,141.21,141.16,4.01591257]
[1641783165785,27.66479,141.21,141.17,2.45943705]
[1641783166183,27.66479,141.21,141.18,4.01591257]
[1641783167303,27.66479,141.21,141.19,2.45943705]
[1641783167685,27.66479,141.21,141.2,4.01591257]
[1641783168288,30.28376519,141.21,141.2,4.01591257]
[1641783169389,30.28376519,141.21,141.17,4.01591257]
[1641783169990,2.61897519,141.2,141.17,4.01591257]
[1641783170390,11.97497519,141.2,141.17,4.01591257]
[1641783170893,9.356,141.2,141.17,4.01591257]
[1641783171492,9.356,141.2,141.18,2.46137235]
[1641783171893,9.356,141.2,141.19,4.01591257]
[1641783172393,11.97511392,141.2,141.19,4.01591257]
[1641783172893,11.97511392,141.2,141.16,4.01591257]
[1641783173294,9.356,141.2,141.16,4.01591257]
[1641783174196,9.356,141.2,141.17,2.46105334]
[1641783174895,9.356,141.2,141.18,4.01591257]
[1641783175498,27.66479,141.21,141.18,4.01591257]
[1641783175797,2.61925845,141.2,141.18,4.01591257]
[1641783175998,10.18125845,141.2,141.18,4.01591257]
[1641783176301,7.562,141.2,141.16,4.01591257]
[1641783176699,7.562,141.2,141.17,2.46124039]
[1641783177299,7.562,141.2,141.18,4.01591257]
[1641783178401,2.61904131,141.19,141.18,4.01591257]
[1641783179401,2.61904131,141.19,141.16,4.01591257]
[1641783179601,27.66479,141.17,141.16,4.01591257]
[1641783179802,33.82679,141.17,141.16,4.01591257]
[1641783180302,6.162,141.17,141.16,4.01591257]
[1641783180501,6.162,141.17,141.16,2.46064089]
[1641783181102,6.162,141.17,141.16,6.47655346]
[1641783181505,33.82679,141.17,141.16,4.01591257]
[1641783182105,36.44643909,141.17,141.16,4.01591257]
[1641783183206,30.28443909,141.17,141.16,4.01591257]
[1641783183405,2.61964909,141.17,141.16,4.01591257]
[1641783183605,40.41408062,141.21,141.14,8.01591257]
[1641783184209,2.61912052,141.2,141.15,4.01591257]
[1641783184410,2.61912052,141.2,141.16,2.45996324]
[1641783184808,2.61912052,141.2,141.17,4.01591257]
[1641783185710,2.61912052,141.2,141.14,28.87313849]
[1641783185910,9.75512052,141.2,141.14,28.87313849]
[1641783186410,2.61912052,141.19,141.15,6.47676884]
[1641783186616,4.0,141.18,141.15,6.47676884]
[1641783187012,2.61912052,141.19,141.15,6.47676884]
[1641783187212,2.61912052,141.19,141.16,2.46085627]
[1641783187413,2.61912052,141.17,141.16,6.47676884]
[1641783187612,36.51391052,141.17,141.16,6.47676884]
[1641783187813,33.89479,141.17,141.16,6.47676884]
[1641783188013,33.89479,141.17,141.16,4.01591257]
[1641783188414,36.51391052,141.17,141.14,4.01591257]
[1641783188914,2.61912052,141.16,141.14,4.01591257]
[1641783189216,33.89479,141.17,141.14,4.01591257]
[1641783190018,33.89479,141.17,141.15,2.46071222]
[1641783190618,33.89479,141.17,141.16,4.01591257]
[1641783191120,36.51512155,141.17,141.16,4.01591257]
[1641783192023,8.85033155,141.17,141.16,4.01591257]
[1641783192419,6.23,141.17,141.14,4.01591257]
[1641783192820,6.23,141.17,141.16,2.46062236]
[1641783193221,6.23,141.17,141.16,6.47653493]
[1641783197727,8.85002264,141.17,141.16,6.47653493]
[1641783203131,2.62002264,141.17,141.16,6.47653493]
[1641783203331,5.66644558,141.19,141.16,6.47653493]
[1641783203732,2.62001472,141.18,141.17,4.01591257]
[1641783203934,10.49801472,141.18,141.17,4.01591257]
[1641783204633,10.49801472,141.18,141.14,4.01591257]
[1641783205035,7.878,141.18,141.14,4.01591257]
[1641783205540,7.878,141.18,141.15,2.463595]
[1641783205939,7.878,141.18,141.16,4.01591257]
[1641783207339,7.878,141.18,141.14,4.01591257]
[1641783208142,7.878,141.18,141.15,2.46431149]
[1641783208541,7.878,141.18,141.16,4.01591257]
[1641783208841,9.66711996,141.17,141.16,1.257e-05]
[1641783209140,9.66711996,141.17,141.13,14.95770931]
[1641783209141,5.66789256,141.15,141.13,14.95770931]
[1641783209340,13.06689256,141.15,141.13,14.95770931]
[1641783209742,7.798,141.15,141.13,14.95770931]
[1641783209943,7.798,141.15,141.09,18.95770931]
[1641783210142,7.798,141.15,141.09,14.95770931]
[1641783210543,7.798,141.15,141.1,4.01893036]
[1641783211044,48.28968148,141.17,141.1,4.01893036]
[1641783211244,37.33197217,141.17,141.1,18.97663967]
[1641783211445,3.82555224,141.16,141.1,18.97663967]
[1641783211944,3.82555224,141.16,141.11,4.01893036]
[1641783212744,3.82555224,141.16,141.1,4.01893036]
[1641783213044,4.0,141.15,141.1,4.01893036]
[1641783213246,10.887,141.15,141.1,4.01893036]
[1641783213644,3.82555224,141.14,141.09,4.01893036]
[1641783214245,27.66479,141.13,141.08,4.01893036]
[1641783214648,3.82555224,141.12,141.08,4.01893036]
[1641783221454,7.82555224,141.12,141.08,4.01893036]
[1641783221653,3.82555224,141.12,141.08,4.01893036]
[1641783221853,27.66479,141.13,141.08,4.01893036]
[1641783222256,3.82638265,141.12,141.08,4.01893036]
[1641783223156,9.49543217,141.12,141.08,4.01893036]
[1641783223357,4.0,141.11,141.08,4.01893036]
[1641783223556,7.82638265,141.11,141.08,4.01893036]
[1641783223758,3.82638265,141.11,141.08,4.01893036]
[1641783223959,5.66904952,141.12,141.08,4.01893036]
[1641783224360,3.82655136,141.11,141.08,4.01893036]
[1641783227465,31.49134136,141.11,141.08,4.01893036]
[1641783227867,27.66479,141.11,141.08,4.01893036]
[1641783231170,31.66479,141.11,141.08,4.01893036]
[1641783231572,3.82661359,141.1,141.08,4.01893036]
[1641783238683,9.49636336,141.1,141.08,4.01893036]
[1641783239083,5.67014577,141.09,141.08,4.01893036]
[1641783239483,27.66479,141.13,141.08,4.01893036]
[1641783239882,3.82610924,141.12,141.07,4.01893036]
[1641783240486,3.82610924,141.12,141.08,14.95770931]
[1641783240684,5.66848791,141.14,141.08,14.95770931]
[1641783241285,3.82604749,141.13,141.09,4.01893036]
[1641783243789,31.49083749,141.13,141.09,4.01893036]
[1641783244191,3.82604749,141.12,141.09,4.01893036]
[1641783245091,3.82604749,141.12,141.08,4.01893036]
[1641783246896,3.82604749,141.12,141.07,4.01893036]
[1641783248196,3.82604749,141.12,141.06,4.01893036]
[1641783248594,4.0,141.11,141.06,4.01893036]
[1641783248997,3.82604749,141.1,141.06,4.01893036]
[1641783249898,3.82604749,141.1,141.07,2.46554548]
[1641783250299,3.82604749,141.11,141.08,4.01893036]
[1641783251301,3.82604749,141.12,141.09,2.46554548]
[1641783251500,3.82604749,141.1,141.09,2.46554548]
[1641783251702,14.95770931,141.15,141.09,2.46554548]
[1641783252702,2.5510117,141.15,141.08,31.34242611]
[1641783252902,2.67825613,141.14,141.1,4.01936835]
[1641783253302,2.5510117,141.15,141.1,4.01936835]
[1641783254202,27.66479,141.16,141.1,8.01936835]
[1641783254402,27.66479,141.16,141.11,17.42325479]
[1641783254604,27.66479,141.16,141.11,21.42325479]
[1641783254802,27.66479,141.16,141.11,17.42325479]
[1641783255103,2.67794954,141.15,141.12,4.01936835]
[1641783255302,2.67794954,141.15,141.12,6.48491383]
[1641783255906,2.67794954,141.15,141.13,4.01936835]
[1641783256103,9.6682103,141.14,141.13,4.01936835]
[1641783256302,9.6682103,141.14,141.08,50.22580931]
[1641783256507,5.66900391,141.12,141.08,50.22580931]
[1641783257105,5.66900391,141.12,141.05,14.95770931]
[1641783257106,9.66900391,141.12,141.05,14.95770931]
[1641783257305,5.66900391,141.12,141.06,34.4736]
[1641783257705,3.88493877,141.11,141.06,38.49390145]
[1641783257906,27.66479,141.1,141.06,38.49390145]
[1641783258104,27.66479,141.1,141.07,6.48294673]
[1641783258505,27.66479,141.1,141.08,4.02030145]
[1641783259007,27.66479,141.1,141.08,6.48294673]
[1641783259410,27.66479,141.1,141.09,4.02030145]
[1641783259805,39.24054911,141.15,141.09,4.02030145]
[1641783260006,39.24054911,141.15,141.09,6.48294673]
[1641783260205,3.88296214,141.14,141.09,6.48294673]
[1641783260608,3.88296214,141.14,141.1,4.02030145]
[1641783261007,3.88296214,141.14,141.1,6.48294673]
[1641783261713,3.88296214,141.14,141.11,6.48294673]
[1641783261914,27.66479,141.13,141.11,6.48294673]
[1641783262115,27.66479,141.13,141.12,4.02030145]
[1641783262614,31.54775214,141.13,141.12,4.02030145]
[1641783262913,31.54775214,141.13,141.1,4.02030145]
[1641783263315,27.66479,141.13,141.1,4.02030145]
[1641783263817,27.66479,141.13,141.11,2.46206244]
[1641783264216,27.66479,141.13,141.12,4.02030145]
[1641783264620,31.54817045,141.13,141.12,4.02030145]
[1641783264816,31.54817045,141.13,141.08,14.95770931]
[1641783265417,31.66479,141.13,141.06,34.0291]
[1641783265818,59.32958,141.13,141.06,34.0291]
[1641783266017,4.01861654,141.12,141.07,2.95608411]
[1641783267926,13.68765464,141.12,141.07,2.95608411]
[1641783268523,4.01861654,141.11,141.07,2.95608411]
[1641783269925,27.66479,141.1,141.07,2.95608411]
[1641783270527,4.01861654,141.09,141.07,2.95608411]
[1641783271425,27.66479,141.1,141.07,2.95608411]
[1641783275435,27.66479,141.1,141.07,27.81425733]
[1641783275736,27.66479,141.1,141.08,2.95608411]
[1641783279240,27.66479,141.1,141.08,6.95608411]
[1641783279441,27.66479,141.13,141.09,4.0]
[1641783279642,20.69425005,141.18,141.1,4.0]
[1641783279842,20.69425005,141.18,141.1,6.95608411]
[1641783280045,20.69425005,141.18,141.11,27.66479]
[1641783280242,20.69425005,141.18,141.11,31.66479]
[1641783280445,4.01738474,141.17,141.12,2.95608411]
[1641783282843,4.01738474,141.17,141.12,38.57488411]
[1641783283446,4.01738474,141.17,141.13,2.95608411]
[1641783286148,4.01738474,141.19,141.13,2.95608411]
[1641783286748,5.66694538,141.17,141.13,2.95608411]
[1641783287548,4.01738474,141.16,141.12,2.95608411]
[1641783287950,13.68490451,141.16,141.12,2.95608411]
[1641783288350,27.66479,141.15,141.12,2.95608411]
[1641783288548,31.68217474,141.15,141.1,2.95608411]
[1641783288950,4.01738474,141.14,141.1,2.95608411]
[1641783291554,4.01738474,141.14,141.08,2.95608411]
[1641783291753,9.685572,141.14,141.08,2.95608411]
[1641783291955,9.685572,141.14,141.07,2.95608411]
[1641783292354,8.01738474,141.13,141.07,2.95608411]
[1641783292757,4.01738474,141.12,141.07,2.95608411]
[1641783293158,4.01738474,141.13,141.07,2.95608411]
[1641783294257,8.01738474,141.13,141.07,2.95608411]
[1641783294457,4.0,141.12,141.07,2.95608411]
[1641783294659,4.0,141.11,141.07,2.95608411]
[1641783294859,4.0,141.1,141.07,2.95608411]
[1641783295459,4.01738474,141.09,141.07,2.95608411]
[1641783298764,4.01738474,141.1,141.07,2.95608411]
[1641783299063,8.01738474,141.1,141.07,2.95608411]
[1641783299666,4.01738474,141.09,141.07,2.95608411]
[1641783300768,4.01738474,141.1,141.07,2.95608411]
[1641783300966,11.33848629,141.12,141.07,8.60608411]
[1641783301366,11.33848629,141.12,141.08,2.95608411]
[1641783301567,4.0190115,141.11,141.08,2.95608411]
[1641783301966,4.0190115,141.11,141.07,2.95608411]
[1641783302366,5.66871396,141.13,141.07,2.95608411]
[1641783302367,4.0190115,141.12,141.07,2.95608411]
[1641783302568,4.0190115,141.12,141.07,9.01708411]
[1641783303166,32.3251,141.14,141.08,2.95608411]
[1641783303167,4.0190115,141.13,141.08,2.95608411]
[1641783303767,9.68784013,141.13,141.08,2.95608411]
[1641783304167,15.35668802,141.13,141.08,2.95608411]
[1641783304368,4.0190115,141.12,141.07,2.95608411]
[1641783305571,4.0190115,141.12,141.08,2.4581475]
[1641783305772,4.0190115,141.14,141.08,8.5051475]
[1641783306173,8.0190115,141.14,141.09,2.95608411]
[1641783306373,8.0190115,141.14,141.09,5.41423161]
[1641783306573,4.0190115,141.13,141.09,5.41423161]
[1641783306974,4.0190115,141.13,141.1,2.95608411]
[1641783307573,4.0190115,141.13,141.07,2.95608411]
[1641783308377,8.0190115,141.13,141.07,2.95608411]
[1641783308777,4.0190115,141.12,141.07,2.95608411]
[1641783308980,13.68809615,141.12,141.07,2.95608411]
[1641783309178,4.0,141.11,141.07,2.95608411]
[1641783309379,5.66988376,141.1,141.07,2.95608411]
[1641783309880,8.0190115,141.09,141.07,2.95608411]
[1641783310079,13.68928508,141.09,141.03,14.95770931]
[1641783310680,5.67027358,141.09,141.03,14.95770931]
[1641783310981,5.67027358,141.09,141.01,31.66479]
[1641783310982,5.67027358,141.09,141.02,37.35322971]
[1641783311682,4.01963316,141.08,141.03,2.92752239]
[1641783312081,4.01963316,141.08,141.03,5.3857521]
[1641783312281,27.66479,141.11,141.03,7.1577521]
[1641783312481,27.66479,141.11,141.03,13.7867521]
[1641783312681,27.66479,141.11,141.04,4.0]
[1641783312881,4.01898145,141.1,141.04,24.34346141]
[1641783313083,4.01898145,141.1,141.05,4.0]
[1641783313281,4.01898145,141.1,141.06,4.0]
[1641783313482,4.01898145,141.1,141.05,8.69952239]
[1641783313682,4.01898145,141.1,141.07,2.92752239]
[1641783314684,4.01898145,141.1,141.08,2.45822971]
[1641783314884,27.66479,141.11,141.08,2.45822971]
[1641783315284,27.66479,141.11,141.09,2.92752239]
[1641783315685,4.01859628,141.1,141.09,2.92752239]
[1641783316386,4.01859628,141.1,141.09,5.3857521]
[1641783316590,27.66479,141.11,141.09,5.3857521]
[1641783316887,27.66479,141.11,141.1,2.92752239]
[1641783317287,31.68329628,141.11,141.1,5.3857521]
[1641783318290,4.01850628,141.11,141.1,5.3857521]
[1641783318693,4.01850628,141.12,141.1,5.3857521]
[1641783319091,4.01850628,141.12,141.11,2.92752239]
[1641783319490,4.01850628,141.12,141.11,5.3857521]
[1641783320291,4.01850628,141.12,141.11,2.92752239]
[1641783321297,4.01850628,141.12,141.07,27.66479]
[1641783321793,5.66954396,141.11,141.06,49.01230931]
[1641783321993,11.78554396,141.11,141.08,2.33566584]
[1641783322194,5.67033748,141.09,141.08,2.33566584]
[1641783322394,5.67033748,141.09,141.07,2.33566584]
[1641783322595,5.67033748,141.09,141.07,4.79950153]
[1641783322995,4.01850628,141.08,141.07,4.79950153]
[1641783323698,4.01850628,141.08,141.07,2.33566584]
[1641783324197,4.01850628,141.08,141.06,2.33566584]
[1641783325000,4.01850628,141.08,141.05,2.33566584]
[1641783325898,4.01850628,141.08,141.05,27.20505665]
[1641783326499,4.01850628,141.08,141.06,2.33566584]
[1641783328301,5.67033748,141.09,141.06,2.33566584]
[1641783329103,4.01889708,141.08,141.06,2.33566584]
[1641783329502,4.01889708,141.11,141.06,2.33566584]
[1641783330003,4.01889708,141.11,141.05,2.33566584]
[1641783330204,8.01889708,141.11,141.05,2.33566584]
[1641783330803,9.68864231,141.1,141.05,2.33566584]
[1641783331305,4.01889708,141.09,141.05,2.33566584]
[1641783331903,5.67061164,141.08,141.05,2.33566584]
[1641783332305,9.68989595,141.07,141.05,2.33566584]
[1641783332506,13.68989595,141.07,141.05,2.33566584]
[1641783332705,8.01889708,141.06,141.04,2.33566584]
[1641783332905,5.6717701,141.05,141.04,2.33566584]
[1641783333306,9.69066718,141.05,141.04,2.33566584]
[1641783333507,9.69066718,141.05,141.03,2.33566584]
[1641783333707,19.36276513,141.05,141.03,2.33566584]
[1641783333908,4.01889708,141.04,141.03,2.33566584]
[1641783334311,4.01889708,141.04,141.01,2.33566584]
[1641783336416,5.67264085,141.03,141.01,2.33566584]
[1641783337018,4.01889708,141.02,141.0,2.33566584]
[1641783337917,4.01889708,141.05,141.0,2.33566584]
[1641783338721,4.01889708,141.05,141.01,2.45711892]
[1641783339424,4.01889708,141.05,141.02,2.33566584]
[1641783340625,4.01889708,141.05,141.01,2.33566584]
[1641783340827,9.67228238,141.04,141.01,2.33566584]
[1641783341624,5.67228238,141.04,141.01,2.33566584]
[1641783341823,4.01889708,141.03,140.99,2.33566584]
[1641783342425,4.01889708,141.03,140.98,2.33566584]
[1641783342624,5.67318811,141.02,141.0,2.45619359]
[1641783343026,9.67318811,141.02,141.01,2.33566584]
[1641783343225,5.67318811,141.02,141.01,2.33566584]
[1641783343832,5.67318811,141.02,140.98,2.33566584]
[1641783344428,7.09169562,141.05,140.98,2.33566584]
[1641783344629,6.80585706,141.06,140.98,8.37766584]
[1641783345129,6.80585706,141.06,140.99,2.33566584]
[1641783345330,6.80585706,141.06,140.99,4.7902668]
[1641783346129,6.80585706,141.06,141.0,4.7902668]
[1641783346329,10.80585706,141.06,141.0,4.7902668]
[1641783346830,10.80585706,141.06,141.01,2.33566584]
[1641783347030,5.67242174,141.04,141.01,2.33566584]
[1641783347232,9.67242174,141.04,141.01,2.33566584]
[1641783347630,9.67242174,141.04,140.98,2.33566584]
[1641783348631,9.67242174,141.04,140.99,2.45557151]
[1641783349333,9.67242174,141.04,141.0,2.33566584]
[1641783349532,5.67242174,141.04,141.0,2.33566584]
[1641783349734,5.67296358,141.02,141.0,2.33566584]
[1641783350533,5.67296358,141.02,140.98,2.33566584]
[1641783351734,5.67296358,141.02,140.99,2.45603353]
[1641783352340,5.67296358,141.02,141.0,2.33566584]
[1641783353735,5.67296358,141.02,140.98,2.33566584]
[1641783354636,5.67186339,141.05,140.98,2.33566584]
[1641783354838,5.67186339,141.05,140.99,34.482]
[1641783355436,5.67186339,141.05,141.0,2.33566584]
[1641783358139,5.67186339,141.05,141.01,2.45969076]
[1641783358339,4.02039225,141.04,141.01,10.13969076]
[1641783358739,4.02039225,141.04,141.02,2.33566584]
[1641783358939,4.02039225,141.04,141.02,4.7953566]
[1641783359241,4.02039225,141.04,141.03,2.33566584]
[1641783360140,4.02039225,141.04,141.02,2.33566584]
[1641783360340,4.02039225,141.04,141.03,2.4613862]
[1641783360945,4.02039225,141.04,141.03,4.79705204]
[1641783366945,4.02039225,141.04,141.03,13.98005204]
[1641783367145,5.67186339,141.05,141.03,13.98005204]
[1641783367547,5.67186339,141.05,141.04,2.33566584]
[1641783368148,9.6917615,141.05,141.04,2.33566584]
[1641783368648,9.6917615,141.05,141.04,4.79705204]
[1641783369248,4.01989811,141.05,141.04,4.79705204]
[1641783369449,6.80546053,141.07,141.04,4.79705204]
[1641783369850,4.01960631,141.06,141.05,2.33566584]
[1641783370549,4.01960631,141.06,141.05,4.79705204]
[1641783370948,33.33490782,141.1,141.05,2.4613862]
[1641783371149,4.01952283,141.06,141.05,4.79756434]
[1641783371550,4.01952283,141.09,141.05,4.79756434]
[1641783371949,4.01952283,141.09,141.05,2.33617814]
[1641783372152,4.01952283,141.09,141.06,2.33617814]
[1641783372551,4.0,141.07,141.04,2.33617814]
[1641783372750,31.66479,141.07,141.04,2.33617814]
[1641783372953,4.01952283,141.06,141.03,2.33617814]
[1641783373151,9.6911868,141.06,141.03,2.33617814]
[1641783373550,4.01952283,141.05,141.03,2.33617814]
[1641783374350,4.01952283,141.05,141.01,2.33617814]
[1641783375353,4.01952283,141.05,141.02,2.46218908]
[1641783375756,4.01952283,141.05,141.03,2.33617814]
[1641783377558,4.01952283,141.05,141.01,2.33617814]
[1641783378661,4.01952283,141.05,141.02,2.46263781]
[1641783379164,4.01952283,141.05,141.03,2.33617814]
[1641783381068,4.01952283,141.05,141.01,2.33617814]
[1641783381468,4.01952283,141.05,141.04,2.33617814]
[1641783381867,4.01952283,141.05,141.02,2.46327704]
[1641783382268,4.01952283,141.05,141.03,2.33617814]
[1641783383568,4.01952283,141.05,141.01,2.33617814]
[1641783383770,9.69139325,141.05,141.01,2.33617814]
[1641783383968,13.69139325,141.05,141.01,2.33617814]
[1641783384169,9.67269626,141.03,141.01,2.33617814]
[1641783384369,4.0,141.02,141.0,11.62006932]
[1641783384969,4.0,141.02,140.97,27.66479]
[1641783385672,4.02108639,141.01,140.98,1.84713948]
[1641783385973,4.02108639,141.01,140.98,4.31067424]
[1641783386571,37.79718639,141.05,140.99,1.84713948]
[1641783386773,41.79718639,141.05,140.99,1.84713948]
[1641783387071,41.79718639,141.05,140.99,4.31067424]
[1641783387072,4.02108639,141.04,140.99,4.31067424]
[1641783387479,8.02108639,141.04,141.0,1.84713948]
[1641783387778,4.02108639,141.03,141.0,4.31067424]
[1641783388178,8.02108639,141.04,141.01,1.84713948]
[1641783388379,35.68587639,141.04,141.01,1.84713948]
[1641783388580,4.02108639,141.03,141.01,1.84713948]
[1641783389077,4.02108639,141.03,140.99,1.84713948]
[1641783389278,4.0,141.02,140.99,1.84713948]